Cogmind - Beta 17.1 @@@ ROGUE MODE // 2026.09.20 @ 20:44:19 Player: Lazz Result: Destroyed by 7V-RTL with Dispersion Rifle Performance ------------- Evolutions (1) 500 Regions Visited (6) 1200 Robots Destroyed (21) 105 Value Destroyed (551) 551 Prototype IDs (25) 500 Alien Tech Used (0) 0 Bonus (300) 300 TOTAL SCORE: 3156 Bonus ------- Aligned with FarCom 300 Cogmind --------- Core Integrity 0/400 Matter 186/300 Energy 19/100 System Corruption 3% Temperature Cool (55) Movement Core (50) Location -8/Mines Parts ------- > --- POWER (1) -------- (None) > --- PROPULSION (3) --- (None) > --- UTILITY (3) ------ (None) > --- WEAPON (2) ------- Longsword +1 > --- INVENTORY (5) ---- EM Pulse Gun Medium Laser Firepult Assault Rifle Peak State ------------ > --- POWER ------------ Ion Engine > --- PROPULSION ------- Light Treads Light Treads Light Treads > --- UTILITY ---------- Large Storage Unit Structural Scanner Improved Terrain Scanner > --- WEAPON ----------- Firepult > --- INVENTORY -------- Ion Engine Light Nuclear Core EM Pulse Gun Light EM Pulse Cannon Light EM Pulse Cannon YOLO Cannon Assault Rifle EMP Blaster Grenade Launcher Grenade Launcher Grenade Launcher Longsword +1 [Rating: 33] Favorites ----------- Power Ion Engine Engine Ion Engine Power Core Light Nuclear Core Propulsion Light Treads Treads Light Treads Utility Structural Scanner Device Structural Scanner Storage Large Storage Unit Weapon Medium Laser Energy Gun Medium Laser Energy Cannon Light EM Pulse Cannon Launcher Grenade Launcher Slashing Weapon Longsword +1 Build | -11 -10 -10 -9 -9 -9 -8 ------- Run | Yrd Mat Min Mat Min Exi Min Slots Evolved 2 | . . . 2 . . . Power . | . . . . . . . Propulsion 1 | . . . 1 . . . Utility 1 | . . . 1 . . . Weapon . | . . . . . . . Parts Attached 23 | 6 6 1 3 1 3 3 Power 3 | 1 1 . . . . 1 Engine 2 | 1 1 . . . . . Core 1 | . . . . . . 1 Reactor . | . . . . . . . Propulsion 5 | 2 1 . 2 . . . Treads 5 | 2 1 . 2 . . . Leg . | . . . . . . . Wheel . | . . . . . . . Hover . | . . . . . . . Flight . | . . . . . . . Utility 7 | 1 2 1 1 . 2 . Device 3 | . 1 . 1 . 1 . Storage 4 | 1 1 1 . . 1 . Processor . | . . . . . . . Hackware . | . . . . . . . Protection . | . . . . . . . Artifact . | . . . . . . . Weapon 8 | 2 2 . . 1 1 2 Energy Gun 3 | 2 1 . . . . . Energy Cannon 3 | . . . . 1 1 1 Ballistic Gun . | . . . . . . . Ballistic Cannon . | . . . . . . . Launcher 1 | . 1 . . . . . Special Weapon . | . . . . . . . Impact Weapon . | . . . . . . . Slashing Weapon 1 | . . . . . . 1 Piercing Weapon . | . . . . . . . Special Melee Weapon . | . . . . . . . Unidentified Prototypes . | . . . . . . . Parts Lost 9 | . . . . 3 1 5 Power 2 | . . . . . . 2 Propulsion 5 | . . . . 2 . 3 Utility 2 | . . . . 1 1 . Weapon . | . . . . . . . Highest Loss Streak 5 | . . . . 2 1 5 To Critical Strikes . | . . . . . . . Average Backups 10 | 1 6 10 11 12 12 11 Power 1 | . . 2 2 2 2 1 Propulsion . | . . 1 1 1 . . Utility 1 | . 2 2 1 1 . . Weapon 6 | . 3 5 7 8 9 9 Tool/Special . | . . . . . . . Unused Backups 6 | . . . . . . 6 Power . | . . . . . . . Propulsion . | . . . . . . . Utility . | . . . . . . . Weapon 6 | . . . . . . 6 Tool/Special . | . . . . . . . Average Slot Usage (%) 92 | . 94 100 99 90 93 60 Engine 12 | . 14 14 11 11 11 8 Treads 29 | . 28 28 33 29 33 23 Device 14 | . 8 14 21 17 17 8 Storage 12 | . 14 14 11 11 11 9 Energy Gun 14 | . 25 14 11 11 9 . Energy Cannon 4 | . . . . 8 5 9 Launcher 4 | . 2 14 11 2 4 . Peak Build Rating 33 | 6 8 8 11 11 33 32 Average Rating 10 | 5 7 8 10 10 16 28 On Entrance 10 | . 6 8 8 11 10 32 Avg Prop Armor Cover (%) . | . . . . . . . Naked Turns 2 | . . . . . . 2 Heaviest Build 49 | 13 21 31 32 33 49 48 Greatest Support 60 | 40 40 40 60 60 60 60 Greatest Overweight (x) 1 | . . . . . . 1 Average Overweight (x) . | . . . . . . . Largest Inventory Capacity 15 | 8 10 15 15 15 15 15 Average Capacity 12 | 7 9 10 15 15 15 13 Most Carried 15 | 3 10 12 13 13 15 15 Average Carried 10 | 1 6 10 11 12 13 12 Final Capacity 15 | 8 10 15 15 15 15 5 Final Carried 14 | 3 10 12 13 12 14 5 Class Distribution -------------------- 88% | Mutant 11% | Scavenger-Mutant Dominant Class ---------------- Mutant | -10/Materials Mutant | -10/Mines Scavenger-Mutant | -9/Materials Mutant | -9/Mines Mutant | -9/Exiles Mutant | -8/Mines Resources | -11 -10 -10 -9 -9 -9 -8 ----------- Run | Yrd Mat Min Mat Min Exi Min Matter Collected 480 | 260 120 40 . 60 . . Remotely . | . . . . . . . Salvage Created 687 | 139 404 . . 108 36 . Parts 44 | 12 27 . . 5 . . Haulers Intercepted 1 | . 1 . . . . . Recyclers Shooed . | . . . . . . . Parts Field Recycled . | . . . . . . . Retrieved Matter . | . . . . . . . Parts Self-Destructed . | . . . . . . . Prevented . | . . . . . . . Parts Restored . | . . . . . . . Kills | -11 -10 -10 -9 -9 -9 -8 ------- Run | Yrd Mat Min Mat Min Exi Min Combat Hostiles Destroyed 17 | . 10 . . 4 3 . Guns 7 | . 6 . . 1 . . Cannons 3 | . . . . 2 1 . AOE 5 | . 3 . . 1 1 . Classes Destroyed 9 | 2 5 . . 1 1 . Builder 1 | . 1 . . . . . Tunneler 3 | 3 . . . . . . Hauler 1 | . 1 . . . . . Recycler 1 | 1 . . . . . . Watcher 1 | . 1 . . . . . Swarmer 3 | . 3 . . . . . Grunt 9 | . 7 . . 2 . . Demolisher 2 | . . . . 2 . . Assembled 3 | . . . . . 3 . Best Kill Streak 4 | 2 4 . . 2 3 . Combat Bots Only 3 | . 3 . . 2 3 . Max Kills in Single Turn 3 | 1 2 . . 1 3 . Gunslinging . | . . . . . . . Exploded 2 | . 2 . . 1 1 . Melee . | . . . . . . . Uniques/NPCs Destroyed . | . . . . . . . Combat | -11 -10 -10 -9 -9 -9 -8 -------- Run | Yrd Mat Min Mat Min Exi Min Hostile Shots Fired 107 | . 54 . . 17 6 30 Missed 19 | . 13 . . 1 1 4 Hits 88 | . 41 . . 16 5 26 Melee 3 | . . . . . 3 . Projectile 85 | . 41 . . 16 2 26 AOE 9 | . . . . 9 . . Critical Strikes 2 | . . . . . . 2 Damage Taken 2006 | . 469 . 27 541 77 892 Core 546 | . 124 . . 28 . 394 Absorbed by Shields . | . . . . . . . Core Remaining (%) 75 | 100 . 50 . . . . Volleys Fired 52 | 7 30 . . 7 3 5 Largest 2 | 2 2 . . 2 1 1 Hottest 250 | 90 100 . . 106 250 250 Shots Fired 90 | 14 54 . . 14 3 5 Gun 69 | 14 48 . . 7 . . Cannon 14 | . . . . 7 2 5 Launcher 7 | . 6 . . . 1 . Special . | . . . . . . . Kinetic . | . . . . . . . Thermal 76 | 14 48 . . 7 2 5 Explosive 7 | . 6 . . . 1 . Electromagnetic 7 | . . . . 7 . . Robot Hit Streak 10 | 3 10 . . 3 . 7 Robot Miss Streak 3 | 2 2 . . 2 . 3 Penetration Max . | . . . . . . . Secondary Targets . | . . . . . . . Shots Hit Robots 65 | 7 40 . . 8 . 10 Core Hits 42 | 5 22 . . 6 6 3 Critical Kills . | . . . . . . . Critical Parts Destroyed . | . . . . . . . Critical Strikes 6 | . 4 . . . . 2 Burn 4 | . 4 . . . . . Sever 2 | . . . . . . 2 Melee Attacks 5 | . . . . . . 5 Impact . | . . . . . . . Slashing 5 | . . . . . . 5 Piercing . | . . . . . . . Sneak Attacks . | . . . . . . . Combat Hostiles . | . . . . . . . Follow-up Attacks . | . . . . . . . Damage Inflicted 1787 | 91 635 . . 161 152 748 Guns 582 | 91 453 . . 38 . . Cannons 341 | . . . . 80 25 236 Explosions 656 | . 182 . . 43 127 304 Melee 208 | . . . . . . 208 Ramming . | . . . . . . . Kinetic . | . . . . . . . Thermal 1317 | 91 453 . . 81 152 540 Explosive 182 | . 182 . . . . . Electromagnetic 80 | . . . . 80 . . Impact . | . . . . . . . Slashing 208 | . . . . . . 208 Piercing . | . . . . . . . Highest Corruption 3 | . . . . . 3 3 Average Corruption 3 | . . . . . 3 3 Corruption Purged . | . . . . . . . Corruption Blocked . | . . . . . . . Effects 2 | . . . . . . 2 Heat Flow Errors 1 | . . . . . . 1 Data Loss (minor) 1 | . . . . . . 1 Overload Shots . | . . . . . . . Overflow Damage 61 | . . . . . . 61 Projectiles . | . . . . . . . Explosions 61 | . . . . . . 61 Melee . | . . . . . . . Knockbacks . | . . . . . . . Impact . | . . . . . . . Kinetic . | . . . . . . . Secondary . | . . . . . . . Self-Inflicted Damage 194 | . 3 . . 26 . 165 Shots 13 | . 1 . . 1 . 11 Rammed . | . . . . . . . Targets Rammed . | . . . . . . . Kicked . | . . . . . . . Crushed . | . . . . . . . Highest Temperature 647 | 90 294 . . 135 204 647 Average Temperature 144 | 43 113 . . 64 108 300 Received Heat Transfer 425 | . 225 . . 63 20 117 Effects 15 | . 1 . . . . 14 Shutdowns 3 | . . . . . . 3 Energy Bleed 3 | . 1 . . . . 2 Interference 2 | . . . . . . 2 Matter Decay 1 | . . . . . . 1 Short Circuit 2 | . . . . . . 2 Damage (minor) 1 | . . . . . . 1 Damage (major) 2 | . . . . . . 2 Damage (core) 1 | . . . . . . 1 Siege Activations . | . . . . . . . Martial Activations . | . . . . . . . Shielding Activations . | . . . . . . . Robots Disrupted . | . . . . . . . Combat Hostiles . | . . . . . . . Robots Corrupted . | . . . . . . . Combat Hostiles . | . . . . . . . Parts Fried . | . . . . . . . Impact Corruptions . | . . . . . . . Robots Melted 2 | . 1 . . . 1 . Combat Hostiles 2 | . 1 . . . 1 . Parts Melted 5 | . 5 . . . . . Heat Transferred 3012 | 248 1558 . . 161 960 85 Parts Sabotaged . | . . . . . . . Parts Stolen . | . . . . . . . Parts Stripped . | . . . . . . . Power Chain Reactions 1 | . . . . 1 . . Alert | -11 -10 -10 -9 -9 -9 -8 ------- Run | Yrd Mat Min Mat Min Exi Min Maximum Alert Level . | . . . . . . . Low Security (%) 100 | 100 100 100 100 100 . 100 Level 1 . | . . . . . . . Level 2 . | . . . . . . . Level 3 . | . . . . . . . Level 4 . | . . . . . . . Level 5 . | . . . . . . . High Security . | . . . . . . . Max Security . | . . . . . . . Peak Influence 146 | 10 146 . 16 56 . 24 Initial . | . . . . . . . Average 8 | . 23 . 1 4 . 3 Influence Increases 542 | 20 344 . 16 109 . 53 Destroy 0b10 Robot/C 280 | . 200 . . 80 . . Destroy 0b10 Robot/NC 35 | 20 15 . . . . . Destroy Leader 74 | . 54 . . 20 . . Allied During Kill 6 | . . . . 6 . . Successful Hack 21 | . 5 . 16 . . . Disable Machine 30 | . . . . . . 30 Destroy Structure 66 | . 40 . . 3 . 23 Lose Combat Pursuer 30 | . 30 . . . . . Influence Decreases 542 | 20 344 . 16 109 . 53 Time Decay 352 | 20 213 . 16 89 . 14 Lost Part 59 | . . . . 20 . 39 Purge Threat 131 | . 131 . . . . . Squads Dispatched 3 | . 2 . 1 . . . Investigation . | . . . . . . . Extermination . | . . . . . . . Reinforcement 3 | . 2 . 1 . . . Assault . | . . . . . . . Garrison . | . . . . . . . Intercept . | . . . . . . . Searches Triggered . | . . . . . . . Construction Impeded . | . . . . . . . Haulers Reinforced . | . . . . . . . Active Scanning Responses . | . . . . . . . Cargo Convoy Interrupts . | . . . . . . . Stealth | -11 -10 -10 -9 -9 -9 -8 --------- Run | Yrd Mat Min Mat Min Exi Min Distress Signals . | . . . . . . . Communications Jammed . | . . . . . . . Distress Signals . | . . . . . . . Times Spotted 28 | . 15 . 1 4 7 1 Peak Tracking Total 9 | . 3 . . 2 9 1 Tactical Retreats 2 | . 2 . . . . . Traps | -11 -10 -10 -9 -9 -9 -8 ------- Run | Yrd Mat Min Mat Min Exi Min Traps Triggered 1 | . . . 1 . . . Indirectly . | . . . . . . . Trap Hack Attempts . | . . . . . . . Triggered . | . . . . . . . Disarmed . | . . . . . . . Reprogrammed . | . . . . . . . Reused . | . . . . . . . Traps Extracted . | . . . . . . . Installed . | . . . . . . . Triggered . | . . . . . . . Machines | -11 -10 -10 -9 -9 -9 -8 ---------- Run | Yrd Mat Min Mat Min Exi Min Machines Disabled 7 | . . . . . 5 2 Max in Single Turn 4 | . . . . . 4 1 Machines Repaired . | . . . . . . . Machines Dismantled . | . . . . . . . Machines Sabotaged . | . . . . . . . Overloaded Fab Kills . | . . . . . . . Hacking | -11 -10 -10 -9 -9 -9 -8 --------- Run | Yrd Mat Min Mat Min Exi Min Machines Accessed 3 | . 1 . 1 . 1 . Terminals 2 | . 1 . 1 . . . Fabricators . | . . . . . . . Repair Stations . | . . . . . . . Recycling Units . | . . . . . . . Scanalyzers . | . . . . . . . Garrison Access . | . . . . . . . Total Hacks 5 | . 3 . 1 . 1 . Successful 4 | . 2 . 1 . 1 . Failed 1 | . 1 . . . . . Catastrophic . | . . . . . . . Database Lockouts . | . . . . . . . Manual 3 | . 2 . . . 1 . Terminals 4 | . 3 . 1 . . . Fabricators . | . . . . . . . Repair Stations . | . . . . . . . Recycling Units . | . . . . . . . Scanalyzers . | . . . . . . . Garrison Access . | . . . . . . . Terminal Hacks 4 | . 2 . 1 . 1 . Prototype ID Bank 1 | . 1 . . . . . Unreport Threat 1 | . 1 . . . . . Registered Components 1 | . . . 1 . . . Proto ID Catalog 1 | . . . . . 1 . Fabricator Hacks . | . . . . . . . Repair Station Hacks . | . . . . . . . Recycling Unit Hacks . | . . . . . . . Scanalyzer . | . . . . . . . Garrison Access Hacks . | . . . . . . . Unauthorized Hacks . | . . . . . . . Terminals . | . . . . . . . Fabricators . | . . . . . . . Repair Stations . | . . . . . . . Recycling Units . | . . . . . . . Scanalyzers . | . . . . . . . Garrison Access . | . . . . . . . Data Cores Recovered . | . . . . . . . Used . | . . . . . . . Hacking Detections 2 | . 1 . 1 . . . Full Trace Events . | . . . . . . . Feedback Events . | . . . . . . . Feedback Blocked . | . . . . . . . Robot Schematics Acquired . | . . . . . . . Robots Built . | . . . . . . . Authchips . | . . . . . . . Time . | . . . . . . . Total Robot Build Rating . | . . . . . . . Part Schematics Acquired . | . . . . . . . Parts Built . | . . . . . . . Authchips . | . . . . . . . Time . | . . . . . . . Total Part Build Rating . | . . . . . . . Part Studies Acquired . | . . . . . . . Parts Repaired . | . . . . . . . Time . | . . . . . . . Parts Recycled . | . . . . . . . Recycled Matter . | . . . . . . . Retrieved Matter . | . . . . . . . Retrieved Components . | . . . . . . . Parts Scanalyzed . | . . . . . . . Part Schematics Acquired . | . . . . . . . Parts Damaged . | . . . . . . . Bothacking | -11 -10 -10 -9 -9 -9 -8 ------------ Run | Yrd Mat Min Mat Min Exi Min Used RIF Installer . | . . . . . . . Robots Hacked . | . . . . . . . Non-combat . | . . . . . . . Combat . | . . . . . . . Robot Hacks Applied . | . . . . . . . Relay Couplers Released . | . . . . . . . Fabnet Peak Effective % . | . . . . . . . Robots Rewired . | . . . . . . . Allies Hacked . | . . . . . . . Hacks Repelled . | . . . . . . . Allies | -11 -10 -10 -9 -9 -9 -8 -------- Run | Yrd Mat Min Mat Min Exi Min Total Allies 2 | . . . . 2 . . Largest Group 2 | . . . . 2 . . Highest-Rated Group 45 | . . . . 45 . . Highest-Rated Ally 31 | . . . . 31 . . Total Orders . | . . . . . . . Ally Attacks 6 | . . . . 6 . . Total Damage 42 | . . . . 42 . . Kills . | . . . . . . . Allies Corrupted . | . . . . . . . Allies Melted . | . . . . . . . Intel | -11 -10 -10 -9 -9 -9 -8 ------- Run | Yrd Mat Min Mat Min Exi Min Active Infowar (turns) 2631 | . 455 465 110 1001 505 95 Terrain 399 | . . . . . 304 95 Structural 2531 | . 455 465 110 1001 500 . Seismic 674 | . . . 109 565 . . Robot Analysis Total . | . . . . . . . Derelict Logs Recovered 4 | . . 1 . 3 . . Drone Launches . | . . . . . . . Drone Recoveries . | . . . . . . . Exploration | -11 -10 -10 -9 -9 -9 -8 ------------- Run | Yrd Mat Min Mat Min Exi Min Turns Passed 3080 | 118 756 465 110 1001 505 125 Spaces Moved 1704 | 55 380 285 66 556 305 57 Core 20 | 14 . . . . . 6 Treads 1684 | 41 380 285 66 556 305 51 Legs . | . . . . . . . Wheels . | . . . . . . . Hover . | . . . . . . . Flight . | . . . . . . . Fastest Speed 50 | 50 160 160 160 160 160 50 Average Speed 158 | 132 160 160 160 160 160 151 Slowest Speed 160 | 160 160 160 160 160 160 160 Overloaded Moves . | . . . . . . . Propulsion Burnouts . | . . . . . . . Robots Hopped . | . . . . . . . Potential Cave-ins . | . . . . . . . Cave-ins Triggered . | . . . . . . . Exploration Rate (%) 46 | 4 63 63 13 99 60 22 Regions Visited 6 Branch Regions 4 Pre-discovered Areas 2 | . . 1 . 1 . . Known Exits Taken . | . . . . . . . Unknown Exits Taken 6 | 1 1 1 1 1 1 . Scrap Searched 3 | . . 1 . 2 . . Spaces Dug . | . . . . . . . Terrain Destroyed 90 | . 42 . . 3 12 33 Melee . | . . . . . . . Projectile 2 | . . . . . . 2 AOE 88 | . 42 . . 3 12 31 Terrain Rammed . | . . . . . . . Walls Destroyed . | . . . . . . . Machines Disabled . | . . . . . . . Actions | -11 -10 -10 -9 -9 -9 -8 --------- Run | Yrd Mat Min Mat Min Exi Min Total 1981 | 84 470 295 70 653 321 88 Wait 165 | 14 46 7 . 87 . 11 Move 1698 | 54 379 284 65 555 304 57 Hop . | . . . . . . . Pick Up 17 | 3 5 2 1 1 5 . Fast Attach 9 | 6 2 . . . . 1 Attach 9 | . . . 2 2 2 3 Detach 2 | . . . . . . 2 Swap 13 | . 7 1 2 1 2 . Drop 11 | . 1 1 . . 5 4 Fire 52 | 7 30 . . 7 3 5 Melee 5 | . . . . . . 5 Ram . | . . . . . . . Kick . | . . . . . . . Crush . | . . . . . . . Escape Stasis . | . . . . . . . Rewire . | . . . . . . . Trap . | . . . . . . . Miscellaneous . | . . . . . . . Route ------- -11/Scrapyard -10/Materials (discovered 2 exits: *Mat / [*Min]) -10/Mines -9/Materials -9/Mines (discovered 3 exits: [*Mat x2] / *Exi) -9/Exiles -8/Mines History --------- Turn | Location | Event 3 | -11/Scrapyard | Discovered new exit (range 16) 119 | -11/Scrapyard | Entered Materials 315 | -10/Materials | Build established: Mutant 689 | -10/Materials | Discovered new exit (range 8) 820 | -10/Materials | Discovered new exit (range 5) 875 | -10/Materials | Entered Mines 896 | -10/Mines | Met a Derelict bent on vengeance 919 | -10/Mines | Learned location of Zion (-7) 1332 | -10/Mines | Discovered new exit (range 5) 1340 | -10/Mines | Entered Materials 1340 | -9/Materials | Evolved 2 slots: Propulsion x1, Utility x1 1433 | -9/Materials | Discovered new exit (range 12) 1434 | -9/Materials | Met 8R-AWN 1450 | -9/Materials | Entered Mines 1451 | -9/Mines | Followed 8R-AWN into the Mines 1475 | -9/Mines | Assembled infested the area 1480 | -9/Mines | Assisted by a Guerilla fighting off Assembled 1635 | -9/Mines | Learned Materials trap positions 1637 | -9/Mines | Discovered new exit (range 6) 1649 | -9/Mines | Build established: Scavenger-Mutant 1678 | -9/Mines | Discovered new exit (range 7) 1852 | -9/Mines | Learned 2 Materials zone layouts 1981 | -9/Mines | Build established: Mutant 2355 | -9/Mines | Found a hidden stash of uninstalled traps 2382 | -9/Mines | Discovered new exit (range 5) 2451 | -9/Mines | Entered Exiles 2495 | -9/Exiles | Welcomed by 8R-AWN 2519 | -9/Exiles | Met EX-HEX 2563 | -9/Exiles | Met EX-BIN 2586 | -9/Exiles | Aligned with FarCom system 2587 | -9/Exiles | Given EX-Vault access code 2626 | -9/Exiles | Opened EX-Vault 2635 | -9/Exiles | Found Firepult 2642 | -9/Exiles | Found YOLO Cannon 2651 | -9/Exiles | Found Longsword +1 2687 | -9/Exiles | Warned to stay clear of 0b10 Research branches 2732 | -9/Exiles | Met EX-DEC 2826 | -9/Exiles | Discovered new exit (range 14) 2907 | -9/Exiles | Attacked by the Exiles 2956 | -9/Exiles | Stole three prototypes: Firepult, YOLO Cannon, Longsword +1 2956 | -9/Exiles | Entered Mines 3026 | -8/Mines | 7V-RTL came to Exiles' defense 3064 | -8/Mines | Core integrity fell below 50% 3076 | -8/Mines | Core integrity fell below 20% 3081 | -8/Mines | Destroyed by 7V-RTL with Dispersion Rifle Last Messages --------------- 03069_ Lgt. Nuclear Core destroyed. 03071_ Acquired Longsword +1. 03073_ U-05 Engineer lays Concrete. 03073_ 7V-RTL Adv. Powered Armor severed. 03074_ U-05 Engineer lays Concrete. 03074_ R-06 Scavenger collects EMP Blaster. 03075_ U-05 Engineer lays Concrete. 03076_ U-05 Engineer builds a Wall. 03077_ R-06 Scavenger collects Broken Imp. Terrain Scanner. 03078_ Penetrated by Slug. 03078_ Slug penetrates Seismic Survey Station. 03078_ R-06 Scavenger collects Grenade Launcher. 03079_ 7V-RTL Prototype Device severed. 03080_ R-06 Scavenger collects Lgt. EM Pulse Cannon. 03080_ U-05 Engineer lays Concrete. 03081_ U-05 Engineer builds a Wall. 03081_ Penetrated by Slug. 03081_ Slug penetrates Earth. Map ----- +----------------------------------------------------+ | | | | | | | | | | | | | | | | | ?????????????????#??????????????????????????? | | ????????????????????????????????????????????? | | ?????????#??????????????????????????????????? | | ??????????#???????#??????????#??????????????? | | ???????#############????????????????????????? | | ??????? ##???????????????????????? | | ????? ?""" """ """ # ???????????????????????? | | ???????""" """ """ # #??????????????????????? | | ???# """ """ """ # #??????????????????????? | | ???# # #?#????????????????????? | | ??## """ """ """ # #?????#????????????????? | | ???????""" """ """ # ####???###?????????????? | | ???# """ """ """ #;#; ### ####??????????? | | ???# #??????? | | ???# """ """ " " "" ??????? | | ???????""" """ "" * "" ???????????? | | ???# """ """ "" ]!]rr """ ???????????? | | ???# @ # #???????????? | | ?????########## #; Y!## ###???????????? | | ??????????????# # u #?????????????? | | ??????????????# # # #????????????? | | ??????????????# ## ## #???????????? | | ??????????????# ########? # ??????????? | | ????????????#?# #??#??#??## ??????????? | | ????????####### ### #??? #???????????? | | ????????# ???????????? | | ??#?????# ######### ????????????? | | ????????# #????#???? ??????????????????????? | | ????????# #?????#??????????????????????????? | | ????????# #????????????????????????????????? | | ?????#??# #????????????????????????????????? | | ?????#### #???#????????????????????????????? | | ????## ####?????#???????????????????????? | | ????# #???????????????????????????? | | ????# ### #???????????????????????????? | | ????## ##???????????????????????????????? | | ?????## ###????????????????????????????????? | | ??????####??????????????????????????????????? | | ????????????????????????????????????????????? | | ????????????????????????????????????????????? | | ?????????????#??????????????????????????????? | | ???#?????????#??????????????????????????????? | +----------------------------------------------------+ Best States ------------- Heat Dissipation 28 Energy Generation 10 Energy Capacity 250 Matter Stores 300 Matter Capacity 300 Sight Range 16 Terrain Scan Range 16 Terrain Scan Density 10 Evasion (%) 50 Recoil Reduction 3 Item Schematics ----------------- None Robot Schematics ------------------ None Fabricated ------------ Nothing Repaired ---------- Nothing Studied --------- None Alien Tech Used ----------------- None Achievements -------------- None Challenges ------------ None Game ------ Seed FocalBiomechanicalGun Manual? 0 Play Time 00:18:02 Cumulative 318.6 hours Start 2026.09.20 @ 20:27:57 End 2026.09.20 @ 20:44:19 Sessions 1 Manual Loads 0 Difficulty Rogue Special Mode None Game No. 394 Rogue 394 Adventurer 0 Explorer 0 Win Type - Total 10 Types 7/0/1/1/0/0/0/1/0/0 Lore% 82 Gallery% 70 Achievement% 60 Wizard Run 0 Options --------- Layout 2 ASCII 0 Keyboard 0 Movement Mouse Keybinds 0 Fullscreen 1 Font 16/SmallcapsGlow Map View 50x49 Zoom Use 13% Tactical HUD 1 Map Filters NONE Filters NONE Steam SD RUN: 9232f173-b2e6-454b-b23c-b450397042dc